fUST/lending_fUST_20240811
["ID","MTS","AMOUNT","RATE_DAILY","PERIOD"]
[334641114,1723377032248,-250.0,0.00018143,2]
[334641117,1723377032258,-250.0,0.00018191,2]
[334641120,1723377032268,-250.0,0.00018239,2]
[334641123,1723377032279,-250.0,0.00018288,2]
[334641126,1723377032289,-250.0,0.00018336,2]
[334641128,1723377032303,-3032.72006598,0.00018356,2]
[334641130,1723377032316,-4025.0,0.00018356,2]
[334641249,1723377038647,-6821.45954729,0.00018356,2]
[334641255,1723377042545,-6898.19646166,0.00018356,2]
[334641256,1723377042555,-35040.45161499,0.00018356,2]
[334641257,1723377042565,-250.0,0.00018385,2]
[334641260,1723377042576,-300.0,0.00018401,2]
[334641261,1723377042591,-170.0,0.00018401,2]
[334641262,1723377042601,-216.38793198,0.00018401,2]
[334641263,1723377042611,-406.53277015,0.00018401,2]
[334641264,1723377042620,-500.0,0.00018401,2]
[334641265,1723377042630,-293.00865728,0.00018401,2]
[334641266,1723377042639,-362.98096632,0.00018401,2]
[334641267,1723377042649,-500.0,0.00018401,2]
[334641268,1723377042660,-500.0,0.00018401,2]
[334641269,1723377042671,-500.0,0.00018401,2]
[334641270,1723377042682,-500.0,0.00018401,2]
[334641271,1723377042692,-500.0,0.00018401,2]
[334641272,1723377042701,-500.0,0.00018401,2]
[334641274,1723377042711,-500.0,0.00018401,2]
[334641276,1723377042720,-500.0,0.00018401,2]
[334641278,1723377042730,-500.0,0.00018401,2]
[334641280,1723377042739,-500.0,0.00018401,2]
[334641282,1723377042749,-500.0,0.00018401,2]
[334641283,1723377042760,-500.0,0.00018401,2]
[334641284,1723377042771,-500.0,0.00018401,2]
[334641285,1723377042782,-500.0,0.00018401,2]
[334641286,1723377042793,-500.0,0.00018401,2]
[334641287,1723377042803,-500.0,0.00018401,2]
[334641288,1723377042813,-500.0,0.00018401,2]
[334641289,1723377042823,-500.0,0.00018401,2]
[334641290,1723377042833,-500.0,0.00018401,2]
[334641292,1723377042846,-254.11266894,0.00018401,2]
[334641293,1723377042856,-500.0,0.00018401,2]
[334641294,1723377042865,-500.0,0.00018401,2]
[334641296,1723377042875,-500.0,0.00018401,2]
[334641297,1723377042885,-500.0,0.00018401,2]
[334641298,1723377042895,-500.0,0.00018401,2]
[334641299,1723377042905,-500.0,0.00018401,2]
[334641300,1723377042915,-500.0,0.00018401,2]
[334641301,1723377042924,-500.0,0.00018401,2]
[334641302,1723377042934,-500.0,0.00018401,2]
[334641303,1723377042943,-500.0,0.00018401,2]
[334641304,1723377042953,-500.0,0.00018401,2]
[334641305,1723377042962,-500.0,0.00018401,2]
[334641306,1723377042972,-500.0,0.00018401,2]
[334641308,1723377042981,-500.0,0.00018401,2]
[334641310,1723377042991,-500.0,0.00018401,2]
[334641311,1723377043000,-500.0,0.00018401,2]
[334641312,1723377043010,-500.0,0.00018401,2]
[334641313,1723377043019,-500.0,0.00018401,2]
[334641314,1723377043028,-500.0,0.00018401,2]
[334641316,1723377043037,-500.0,0.00018401,2]
[334641317,1723377043047,-3870.58089868,0.00018402,2]
[334641318,1723377043068,-10380.86404192,0.00018402,2]
[334641319,1723377043077,-250.0,0.00018433,2]
[334641320,1723377043086,-250.0,0.00018482,2]
[334641321,1723377043097,-3090.31067256,0.00018489,2]
[334641322,1723377043111,-250.0,0.0001853,2]
[334641323,1723377043121,-250.0,0.00018579,2]
[334641324,1723377043131,-1163.86062826,0.00018587,2]
[334641325,1723377043141,-1765.03360075,0.00018629,2]
[334641326,1723377043151,-2478.88428294,0.0001864,2]
[334641327,1723377043161,-156.49388198,0.00018667,2]
[334641328,1723377043170,-616.57379329,0.00018667,2]
[334641329,1723377043181,-509.9044499,0.00018667,2]
[334641330,1723377043191,-616.57379329,0.00018667,2]
[334641331,1723377043200,-616.57379329,0.00018667,2]
[334641332,1723377043210,-616.57379329,0.00018667,2]
[334641333,1723377043220,-427.49549672,0.00018667,2]
[334641334,1723377043229,-616.57379329,0.00018667,2]
[334641335,1723377043238,-616.57379329,0.00018667,2]
[334641336,1723377043248,-616.57379329,0.00018667,2]
[334641337,1723377043257,-616.57379329,0.00018667,2]
[334641338,1723377043266,-616.57379329,0.00018667,2]
[334641339,1723377043276,-616.57379329,0.00018667,2]
[334641340,1723377043286,-616.57379329,0.00018667,2]
[334641341,1723377043295,-616.57379329,0.00018667,2]
[334641342,1723377043305,-616.57379329,0.00018667,2]
[334641343,1723377043314,-616.57379329,0.00018667,2]
[334641344,1723377043324,-616.57379329,0.00018667,2]
[334641345,1723377043333,-616.57379329,0.00018667,2]
[334641346,1723377043348,-616.57379329,0.00018667,2]
[334641347,1723377043360,-616.57379329,0.00018667,2]
[334641348,1723377043369,-616.57379329,0.00018667,2]
[334641349,1723377043379,-616.57379329,0.00018667,2]
[334641350,1723377043388,-634.19018738,0.00018667,2]
[334641351,1723377043398,-634.19018738,0.00018667,2]
[334641352,1723377043407,-634.19018738,0.00018667,2]
[334641353,1723377043416,-634.19018738,0.00018667,2]
[334641354,1723377043426,-634.19018738,0.00018667,2]
[334641355,1723377043436,-634.19018738,0.00018667,2]
[334641356,1723377043446,-634.19018738,0.00018667,2]
[334641357,1723377043455,-126314.689066,0.00018668,2]
[334641359,1723377043465,-2280.2888261,0.00018679,3]
[334641361,1723377043475,-2005.0,0.00018695,10]
[334641362,1723377043485,-2851.75877843,0.00018696,2]
[334641363,1723377043494,-8836.92013464,0.00018696,2]
[334641364,1723377043504,-2851.75877843,0.00018696,2]
[334641365,1723377043514,-150.112233,0.000187,2]
[334641366,1723377043524,-4850.67632933,0.000187,2]
[334641367,1723377043534,-1717.88440243,0.00018701,2]
[334641368,1723377043544,-1109.82295728,0.00018701,2]
[334641369,1723377043554,-1717.88440243,0.00018701,2]
[334641370,1723377043563,-1993.38782086,0.00018701,2]
[334641371,1723377043573,-1092.45305445,0.00018701,2]
[334641372,1723377043583,-4850.67632933,0.00018761,2]
[334641373,1723377043598,-29125.259816,0.00018762,2]
[334641374,1723377043607,-126314.689066,0.00018763,2]
[334641375,1723377043617,-2710.33053727,0.00018773,2]
[334641376,1723377043626,-1364.59246336,0.00018773,2]
[334641377,1723377043636,-1364.59246336,0.00018773,2]
[334641378,1723377043646,-277.43269753,0.00018799,2]
[334641379,1723377043655,-245.00380538,0.00018799,2]
[334641380,1723377043665,-319.99782942,0.00018799,2]
[334641381,1723377043675,-150.112233,0.000188,2]
[334641382,1723377043685,-126314.689066,0.00018815,2]
[334641383,1723377043694,-4850.67632933,0.00018821,2]
[334641384,1723377043703,-1006.58927352,0.00018825,2]
[334641385,1723377043764,-5095.20829007,0.00018825,2]
[334641387,1723377043890,-11.85679836,0.00018657,3]
[334641417,1723377048313,159.926423,0.00014247,2]
[334641418,1723377373137,828.57,0.00010959,2]
[334641420,1723377572747,269.43652196,0.00016095,4]
[334641429,1723377605212,162.3263,0.00014247,2]
[334641430,1723377796287,2005.0,0.00016037,10]
[334641431,1723377933144,-613.689865,0.00015265,2]
[334641432,1723377933167,-256.60522533,0.00015296,2]
[334641433,1723377935095,-43.39477467,0.00015296,2]
[334641434,1723377935116,-300.0,0.00015296,2]
[334641435,1723377935138,-5236.37367119,0.00015297,2]
[334641436,1723377999205,156.89400092,9.999e-05,2]
[334641437,1723378043906,250.0,0.00014909,2]
[334641438,1723378044190,250.0,0.0001495,2]
[334641439,1723378044567,250.0,0.00014991,2]
[334641441,1723378050936,520.09681302,9.999e-05,2]
[334641442,1723378052145,-250.0,0.00015032,2]
[334641443,1723378052169,-250.0,0.00015073,2]
[334641444,1723378052190,-250.0,0.00015114,2]
[334641445,1723378052212,-250.0,0.00015155,2]
[334641446,1723378052235,-250.0,0.00015195,2]
[334641447,1723378052257,-250.0,0.00015236,2]
[334641448,1723378052281,-250.0,0.00015277,2]
[334641449,1723378052303,-300.0,0.00015296,2]
[334641450,1723378052326,-2860.56617013,0.00015297,2]
[334641451,1723378073710,154.76012181,0.0001212,2]
[334641452,1723378074039,569.05372197,9.999e-05,2]
[334641453,1723378075224,159.926423,0.00014247,2]
[334641454,1723378078198,309.21151064,0.0001212,2]
[334641455,1723378100130,305.72461448,0.0001212,2]
[334641456,1723378118672,155.16138549,9.999e-05,2]
[334641457,1723378120562,623.77169031,0.00014691,2]
[334641458,1723378133656,155.00296967,0.00014691,2]
[334641459,1723378149179,-300.0,0.00015296,2]
[334641460,1723378149202,-300.0,0.00015296,2]
[334641461,1723378149224,-6906.58808725,0.00015297,2]
[334641462,1723378159159,-3716.19951081,0.00015297,2]
[334641463,1723378161501,183.00211227,0.00014691,2]
[334641464,1723378163080,154.76012181,0.00016095,4]
[334641465,1723378163111,-250.0,0.00015318,2]
[334641466,1723378163134,-250.0,0.00015359,2]
[334641467,1723378163158,-250.0,0.000154,2]
[334641468,1723378163182,-250.0,0.00015441,2]
[334641469,1723378163204,-250.0,0.00015482,2]
[334641470,1723378163227,-250.0,0.00015522,2]
[334641471,1723378163253,-250.0,0.00015563,2]
[334641472,1723378163276,-250.0,0.00015604,2]
[334641473,1723378163298,-250.0,0.00015645,2]
[334641474,1723378163321,-250.0,0.00015686,2]
[334641475,1723378163343,-1548.18285895,0.00015708,2]
[334641476,1723378163399,1022.68635755,0.00014591,2]
[334641477,1723378163430,23877.31364245,0.00014591,2]
[334641478,1723378171703,952.621668,0.00015,2]
[334641479,1723378174119,-445.20496191,0.00015708,2]
[334641480,1723378174140,-309.06792299,0.00015708,2]
[334641481,1723378174160,-14251.4449406,0.0001571,2]
[334641482,1723378174181,-14251.4449406,0.0001571,2]
[334641483,1723378174202,-3090.31067256,0.00015712,2]
[334641484,1723378174223,-9971.83904877,0.0001585,2]
[334641485,1723378174245,-42377.77535747,0.00015851,2]
[334641486,1723378174267,-46079.14590705,0.00015851,2]
[334641487,1723378174288,-136.24436827,0.00015942,2]
[334641488,1723378178065,154.76012181,0.00016095,4]
[334641489,1723378178815,154.76012181,9.999e-05,2]
[334641490,1723378207613,1384.13048712,0.0001212,2]
[334641491,1723378210934,42377.77535747,0.0001212,2]
[334641492,1723378212656,376.60386394,0.0001212,2]
[334641493,1723378213164,3090.31067256,0.0001212,2]
[334641494,1723378219205,970.61251567,0.00015,2]
[334641495,1723378228775,9113.44435855,0.0001212,2]
[334641522,1723378232536,-5760.18524548,0.00015842,2]
[334641523,1723378232549,-189.91186464,0.00015851,2]
[334641524,1723378232558,-300.0,0.00015941,2]
[334641525,1723378232567,-240.0,0.00015941,2]
[334641526,1723378232578,-363.75563173,0.00015942,2]
[334641527,1723378232588,-500.0,0.00015942,2]
[334641528,1723378232598,-500.0,0.00015942,2]
[334641529,1723378232609,-500.0,0.00015942,2]
[334641530,1723378232618,-335.4222218,0.00015942,2]
[334641531,1723378232630,-500.0,0.00015942,2]
[334641532,1723378232639,-500.0,0.00015942,2]
[334641533,1723378232649,-342.91543819,0.00015942,2]
[334641534,1723378232658,-500.0,0.00015942,2]
[334641535,1723378232668,-257.7464466,0.00015942,2]
[334641536,1723378232677,-500.0,0.00015942,2]
[334641537,1723378232687,-500.0,0.00015942,2]
[334641538,1723378232696,-500.0,0.00015942,2]
[334641539,1723378232707,-500.0,0.00015942,2]
[334641540,1723378232717,-500.0,0.00015942,2]
[334641541,1723378232726,-500.0,0.00015942,2]
[334641542,1723378232737,-500.0,0.00015942,2]
[334641543,1723378232746,-447.49138783,0.00015942,2]
[334641544,1723378232756,-248.17351008,0.00015942,2]
[334641545,1723378232766,-500.0,0.00015942,2]
[334641546,1723378232775,-500.0,0.00015942,2]
[334641547,1723378232784,-500.0,0.00015942,2]
[334641548,1723378232795,-500.0,0.00015942,2]
[334641549,1723378232804,-500.0,0.00015942,2]
[334641550,1723378232813,-500.0,0.00015942,2]
[334641551,1723378232823,-373.37012398,0.00015942,2]
[334641552,1723378232833,-500.0,0.00015942,2]
[334641553,1723378232843,-500.0,0.00015942,2]
[334641554,1723378232852,-500.0,0.00015942,2]
[334641555,1723378232862,-241.82774384,0.00015942,2]
[334641568,1723378238506,-223.11840822,0.00015942,2]
[334641569,1723378238516,-500.0,0.00015942,2]
[334641570,1723378238526,-500.0,0.00015942,2]
[334641571,1723378238538,-500.0,0.00015942,2]
[334641572,1723378238551,-500.0,0.00015942,2]
[334641573,1723378238568,-500.0,0.00015942,2]
[334641574,1723378238577,-500.0,0.00015942,2]
[334641575,1723378238587,-500.0,0.00015942,2]
[334641576,1723378238596,-500.0,0.00015942,2]
[334641577,1723378238606,-500.0,0.00015942,2]
[334641578,1723378238616,-500.0,0.00015942,2]
[334641579,1723378238625,-500.0,0.00015942,2]
[334641580,1723378238635,-500.0,0.00015942,2]
[334641581,1723378238644,-500.0,0.00015942,2]
[334641582,1723378238655,-500.0,0.00015942,2]
[334641583,1723378238664,-500.0,0.00015942,2]
[334641584,1723378238674,-500.0,0.00015942,2]
[334641585,1723378238684,-500.0,0.00015942,2]
[334641586,1723378238694,-500.0,0.00015942,2]
[334641587,1723378238707,-500.0,0.00015942,2]
[334641588,1723378238718,-500.0,0.00015942,2]
[334641589,1723378238728,-500.0,0.00015942,2]
[334641590,1723378238738,-500.0,0.00015942,2]
[334641591,1723378238748,-500.0,0.00015942,2]
[334641592,1723378238758,-500.0,0.00015942,2]
[334641593,1723378238768,-500.0,0.00015942,2]
[334641594,1723378238778,-500.0,0.00015942,2]
[334641595,1723378238787,-500.0,0.00015942,2]
[334641596,1723378238800,-500.0,0.00015942,2]
[334641597,1723378238810,-500.0,0.00015942,2]
[334641598,1723378238820,-500.0,0.00015942,2]
[334641599,1723378238830,-500.0,0.00015942,2]
[334641600,1723378238840,-500.0,0.00015942,2]
[334641601,1723378238850,-500.0,0.00015942,2]
[334641602,1723378238860,-500.0,0.00015942,2]
[334641603,1723378238870,-500.0,0.00015942,2]
[334641604,1723378238881,-500.0,0.00015942,2]
[334641605,1723378238890,-500.0,0.00015942,2]
[334641606,1723378238900,-500.0,0.00015942,2]
[334641607,1723378238910,-500.0,0.00015942,2]
[334641608,1723378238920,-500.0,0.00015942,2]
[334641609,1723378238930,-449.21096208,0.00015942,2]
[334641610,1723378238940,-51799.5150968,0.00015943,2]
[334641611,1723378238950,-2141.01768748,0.00015952,2]
[334641612,1723378238960,-154.76012181,0.00015952,2]
[334641613,1723378238969,-1765.03360075,0.00015952,2]
[334641614,1723378238979,-154.81863612,0.00015954,2]
[334641615,1723378238989,-165.69067667,0.00016038,2]
[334641616,1723378238999,-1500.0,0.00016038,2]
[334641617,1723378239009,-25899.7575484,0.00016085,2]
[334641618,1723378239019,-605.01999677,0.00016094,2]
[334641619,1723378239028,-7007.90701187,0.00016095,2]
[334641620,1723378239038,-2710.33053727,0.0001611,2]
[334641621,1723378239049,-2710.33053727,0.0001611,2]
[334641622,1723378239059,-9651.03918107,0.0001611,2]
[334641623,1723378239069,-1109.82295728,0.00016159,2]
[334641624,1723378239078,-489.23800463,0.00016203,2]
[334641625,1723378239088,-500.0,0.00016203,2]
[334641626,1723378239097,-223.56268854,0.00016203,2]
[334641627,1723378239107,-842.50210013,0.00016203,2]
[334641628,1723378239117,-454.20030151,0.00016203,2]
[334641629,1723378239127,-842.50210013,0.00016203,2]
[334641630,1723378239137,-842.50210013,0.00016203,2]
[334641631,1723378239146,-842.50210013,0.00016203,2]
[334641632,1723378239156,-842.50210013,0.00016203,2]
[334641633,1723378239166,-842.50210013,0.00016203,2]
[334641634,1723378239176,-842.50210013,0.00016203,2]
[334641635,1723378239186,-842.50210013,0.00016203,2]
[334641636,1723378239196,-842.50210013,0.00016203,2]
[334641637,1723378239206,-842.50210013,0.00016203,2]
[334641638,1723378239216,-842.50210013,0.00016203,2]
[334641639,1723378239226,-842.50210013,0.00016203,2]
[334641640,1723378239235,-842.50210013,0.00016203,2]
[334641641,1723378239245,-842.50210013,0.00016203,2]
[334641642,1723378239254,-842.50210013,0.00016203,2]
[334641643,1723378239264,-842.50210013,0.00016203,2]
[334641644,1723378239274,-842.50210013,0.00016203,2]
[334641645,1723378239284,-842.50210013,0.00016203,2]
[334641646,1723378239297,-842.50210013,0.00016203,2]
[334641647,1723378239306,-842.50210013,0.00016203,2]
[334641648,1723378239316,-109866.36571241,0.00016204,2]
[334641649,1723378239325,-9971.83904875,0.00016205,2]
[334641650,1723378239335,-150.112233,0.000163,2]
[334641651,1723378239346,-500.0,0.00016438,2]
[334641652,1723378239355,-500.0,0.00016438,2]
[334641653,1723378239365,-500.0,0.00016438,2]
[334641654,1723378239375,-276.1765393,0.00016438,2]
[334641655,1723378239385,-500.0,0.00016438,2]
[334641656,1723378239395,-500.0,0.00016438,2]
[334641657,1723378239405,-500.0,0.00016438,2]
[334641658,1723378239415,-500.0,0.00016438,2]
[334641659,1723378239424,-500.0,0.00016438,2]
[334641660,1723378239434,-500.0,0.00016438,2]
[334641661,1723378239444,-500.0,0.00016438,2]
[334641662,1723378239458,-500.0,0.00016438,2]
[334641663,1723378239468,-500.0,0.00016438,2]
[334641664,1723378239478,-500.0,0.00016438,2]
[334641665,1723378239488,-500.0,0.00016438,2]
[334641666,1723378239499,-500.0,0.00016438,2]
[334641667,1723378239509,-500.0,0.00016438,2]
[334641668,1723378239519,-362.39863417,0.00016438,2]
[334641669,1723378239530,-500.0,0.00016438,2]
[334641670,1723378239540,-500.0,0.00016438,2]
[334641671,1723378239553,-500.0,0.00016438,2]
[334641672,1723378239563,-150.112233,0.000165,2]
[334641673,1723378239572,-9971.83904875,0.0001656,2]
[334641674,1723378239582,-150.112233,0.000168,2]
[334641675,1723378239592,-9971.83904875,0.00016914,2]
[334641676,1723378239602,-150.112233,0.00017,2]
[334641677,1723378239611,-686.8095988,0.00017019,2]
[334641678,1723378239621,-810.66153205,0.00017019,2]
[334641679,1723378239630,-833.90450018,0.00017019,2]
[334641680,1723378239640,-150.112233,0.000172,2]
[334641681,1723378239651,-9971.83904875,0.00017269,2]
[334641682,1723378239661,-2367.20627586,0.00017289,2]
[334641683,1723378239671,-51799.5150968,0.00017358,2]
[334641684,1723378239680,-77699.2726453,0.00017358,2]
[334641685,1723378239690,-77699.2726453,0.00017359,2]
[334641686,1723378239699,-77699.2726453,0.00017369,2]
[334641687,1723378239709,-833.90450018,0.00017379,2]
[334641688,1723378239719,-543.53411254,0.00017379,2]
[334641689,1723378239729,-1644.63563966,0.00017379,7]
[334641690,1723378239739,-534.3800288,0.00017379,2]
[334641691,1723378239749,-150.112233,0.000174,2]
[334641692,1723378239759,-850.13586547,0.00017403,2]
[334641693,1723378239769,-420.0,0.00017535,2]
[334641694,1723378239779,-180.63105164,0.00017555,2]
[334641695,1723378239789,-174.67965412,0.00017555,2]
[334641696,1723378239800,-154.77557542,0.00017555,2]
[334641697,1723378239810,-151.0,0.00017678,2]
[334641698,1723378239819,-151.0,0.00017678,2]
[334641699,1723378239829,-178.164987,0.00017678,2]
[334641700,1723378239839,-178.164987,0.00017678,2]
[334641701,1723378239849,-236.475489,0.00017678,2]
[334641702,1723378239858,-236.475489,0.00017678,2]
[334641703,1723378239868,-150.112233,0.000177,2]
[334641704,1723378239877,-347.49485813,0.00017807,2]
[334641705,1723378239887,-309.52024362,0.00017807,2]
[334641706,1723378239897,-175.97109674,0.00017807,2]
[334641707,1723378239907,-809.10695268,0.0001784,2]
[334641708,1723378239916,-2126.37973248,0.0001784,2]
[334641709,1723378239926,-25899.7575484,0.00017872,2]
[334641710,1723378239937,-2126.37973248,0.00017882,2]
[334641711,1723378239947,-210.04889723,0.00017882,2]
[334641712,1723378239957,-1568.03617015,0.00017882,3]
[334641713,1723378239967,-319.99782942,0.00017882,2]
[334641714,1723378239977,-150.112233,0.000179,2]
[334641715,1723378239987,-244.96596268,0.00018,2]
[334641716,1723378239997,-151.0,0.00018067,2]
[334641717,1723378240007,-151.0,0.00018067,2]
[334641719,1723378240016,-151.0,0.00018067,2]
[334641721,1723378240026,-150.112233,0.000181,2]
[334641723,1723378240037,-205.17764203,0.00018125,2]
[334641724,1723378240049,-492.86524914,0.00018125,2]
[334641725,1723378240059,-532.72454116,0.00018125,2]
[334641726,1723378240069,-414.28019691,0.00018125,2]
[334641727,1723378240079,-417.9196343,0.00018279,2]
[334641728,1723378240090,-150.112233,0.000183,2]
[334641729,1723378240101,-77699.2726453,0.00018315,2]
[334641730,1723378240111,-601.3570708,0.00018316,2]
[334641731,1723378240130,-154.76012181,0.00018316,2]
[334641732,1723378240143,-601.3570708,0.00018316,2]
[334641733,1723378240153,-448.722236,0.00018325,2]
[334641734,1723378240164,-448.722236,0.00018325,2]
[334641735,1723378240176,-151.0,0.00018325,2]
[334641736,1723378240186,-158.349676,0.00018325,2]
[334641737,1723378240196,-178.164987,0.00018325,2]
[334641738,1723378240206,-178.164987,0.00018325,2]
[334641739,1723378240217,-151.0,0.00018325,2]
[334641740,1723378240227,-236.475489,0.00018325,2]
[334641741,1723378240238,-236.475489,0.00018325,2]
[334641742,1723378240248,-298.869484,0.00018325,2]
[334641743,1723378240258,-298.869484,0.00018325,2]
[334641744,1723378240269,-555.193424,0.00018325,2]
[334641745,1723378240279,-555.193424,0.00018325,2]
[334641746,1723378240289,-151.0,0.00018325,2]
[334641747,1723378240301,-151.0,0.00018325,2]
[334641748,1723378240312,-663.887588,0.00018325,2]
[334641749,1723378240322,-663.887588,0.00018325,2]
[334641750,1723378240333,-151.0,0.00018325,2]
[334641751,1723378240343,-268.169195,0.00018325,2]
[334641752,1723378240353,-151.0,0.00018325,2]
[334641753,1723378240364,-268.169195,0.00018325,2]
[334641754,1723378240374,-266.76278,0.00018325,2]
[334641755,1723378240385,-156.96173825,0.00018346,2]
[334641756,1723378240395,-154.76012181,0.00018346,2]
[334641758,1723378240406,-154.76012181,0.00018346,2]
[334641760,1723378240417,-5240.178669,0.00018356,2]
[334641761,1723378240427,-153.621155,0.00018438,2]
[334641762,1723378240438,-151.0,0.00018438,2]
[334641763,1723378240449,-151.0,0.00018438,2]
[334641764,1723378240461,-174.69,0.00018488,10]
[334641765,1723378240471,-5321.67920991,0.00018531,2]
[334641766,1723378240482,-51799.5150968,0.00018542,2]
[334641767,1723378240493,-88888.0,0.00018552,2]
[334641768,1723378240504,-1001.45167858,0.00018555,2]
[334641769,1723378240514,-1612.06535955,0.00018557,2]
[334641770,1723378240524,-1020.54417991,0.00018557,2]
[334641771,1723378240536,-250.53341872,0.00018557,2]
[334641772,1723378240547,-932.99527997,0.00018587,2]
[334641773,1723378240558,-150.112233,0.000186,2]
[334641774,1723378240569,-150.0,0.00018627,2]
[334641775,1723378240579,-694.71379029,0.00018629,2]
[334641776,1723378240590,-2164.45800918,0.00018657,2]
[334641777,1723378240600,-413.29975831,0.00018667,2]
[334641778,1723378240610,-846.23163308,0.00018696,2]
[334641779,1723378240620,-298.28854846,0.00018696,2]
[334641780,1723378240630,-664.85544732,0.00018696,2]
[334641781,1723378240641,-209.37253615,0.00018696,2]
[334641782,1723378240651,-309.35258956,0.00018696,2]
[334641783,1723378240661,-154.79103211,0.00018696,2]
[334641784,1723378240671,-309.52024362,0.00018701,2]
[334641785,1723378240681,-417.46620737,0.00018701,2]
[334641786,1723378240692,-154.76012181,0.00018701,2]
[334641787,1723378240703,-728.15079492,0.00018701,2]
[334641788,1723378240712,-728.15079492,0.00018701,2]
[334641789,1723378240722,-154.76012181,0.00018701,2]
[334641790,1723378240733,-154.76012181,0.00018701,2]
[334641791,1723378240743,-404.08727484,0.00018701,2]
[334641792,1723378240753,-159.38116829,0.0001872,2]
[334641793,1723378240763,-471.24155498,0.0001872,2]
[334641794,1723378240773,-154.76012181,0.0001872,2]
[334641795,1723378240783,-154.88376301,0.0001872,2]
[334641796,1723378240793,-294.6834504,0.0001874,2]
[334641797,1723378240805,-587.116441,0.0001874,2]
[334641798,1723378240815,-294.6834504,0.00018767,2]
[334641799,1723378240826,-156.73199194,0.00018773,2]
[334641800,1723378240836,-154.76012181,0.00018773,2]
[334641801,1723378240846,-342.34390176,0.00018786,2]
[334641802,1723378240856,-240.87977821,0.00018786,2]
[334641803,1723378240866,-154.76012181,0.00018786,2]
[334641804,1723378240876,-223.26161126,0.00018786,2]
[334641805,1723378240886,-166.21570397,0.00018786,2]
[334641806,1723378240897,-154.76012181,0.00018799,2]
[334641807,1723378240907,-150.112233,0.000188,2]
[334641808,1723378240917,-201.64749152,0.00018825,2]
[334641809,1723378240927,-448.722236,0.00018845,2]
[334641810,1723378240937,-448.722236,0.00018845,2]
[334641811,1723378240947,-154.76012181,0.00018845,2]
[334641812,1723378240957,-154.76012181,0.00018899,2]
[334641813,1723378240967,-150.112233,0.000189,2]
[334641814,1723378240977,-150.112233,0.000189,2]
[334641815,1723378240987,-200.0,0.000189,2]
[334641816,1723378240997,-490.849727,0.00018904,2]
[334641817,1723378241007,-154.76012181,0.0001891,2]
[334641818,1723378241017,-154.76012181,0.0001891,2]
[334641819,1723378241027,-480.116952,0.0001891,2]
[334641820,1723378241037,-200.0,0.00018917,2]
[334641821,1723378241054,-194.74416001,0.00018921,2]
[334641822,1723378241064,-522.80309354,0.00018989,2]
[334641823,1723378241074,-154.76012181,0.00018989,2]
[334641824,1723378241084,-35040.45161499,0.00018989,2]
[334641825,1723378241094,-151.0,0.00018999,2]
[334641826,1723378241103,-251.906681,0.00018999,2]
[334641827,1723378241113,-251.906681,0.00018999,2]
[334641828,1723378241123,-20777.37607493,0.00018999,2]
[334641829,1723378241133,-9430.85260519,0.00019,2]
[334641830,1723378241143,-156.28091519,0.00019,2]
[334641831,1723378241154,-150.112233,0.00019,2]
[334641832,1723378241164,-151.0,0.00019,2]
[334641833,1723378241174,-178.164987,0.00019,2]
[334641834,1723378241184,-178.164987,0.00019,2]
[334641835,1723378241194,-236.475489,0.00019,2]
[334641836,1723378241204,-236.475489,0.00019,2]
[334641837,1723378241214,-663.887588,0.00019,2]
[334641838,1723378241224,-663.887588,0.00019,2]
[334641839,1723378241234,-268.169195,0.00019,2]
[334641840,1723378241244,-151.0,0.00019,2]
[334641841,1723378241254,-268.169195,0.00019,2]
[334641842,1723378241264,-266.76278,0.00019,2]
[334641843,1723378241274,-250.0,0.00019041,2]